bitfinex-derivatives/quotes_BTCF0:USTF0_20210703
["timestamp","ask_amount","ask_price","bid_price","bid_amount"]
[1625270704875,0.47031544,33764.0,33763.0,0.29957544]
[1625270704975,0.47031544,33764.0,33763.0,0.24057544]
[1625270705175,0.47031544,33764.0,33763.0,0.29957544]
[1625270705276,0.47031544,33764.0,33763.0,0.24057544]
[1625270705480,0.47031544,33764.0,33763.0,0.29957544]
[1625270705580,0.47031544,33764.0,33763.0,0.24057544]
[1625270705776,0.47031544,33764.0,33758.0,0.9366]
[1625270705877,0.47031544,33764.0,33758.0,0.9956]
[1625270706179,0.24057544,33759.0,33758.0,0.9956]
[1625270707282,0.24057544,33759.0,33758.0,0.9366]
[1625270707731,0.29957544,33759.0,33758.0,0.9366]
[1625270707934,0.35857544,33759.0,33758.0,0.8788]
[1625270708135,0.59915088,33759.0,33758.0,0.8788]
[1625270708234,0.59915088,33759.0,33747.0,0.50952083]
[1625270708585,0.59915088,33759.0,33746.0,1.17397544]
[1625270708586,0.59915088,33759.0,33746.0,0.24057544]
[1625270708685,3.9387,33755.0,33746.0,0.24057544]
[1625270708787,4.235,33755.0,33746.0,0.24057544]
[1625270709290,4.176,33755.0,33746.0,0.24057544]
[1625270709487,4.176,33755.0,33746.0,0.29957544]
[1625270709588,4.176,33755.0,33746.0,0.24057544]
[1625270709838,4.235,33755.0,33746.0,0.24057544]
[1625270710089,4.294,33755.0,33746.0,0.24057544]
[1625270710187,0.72172632,33747.0,33746.0,0.24057544]
[1625270710291,1.01244632,33747.0,33746.0,0.24057544]
[1625270711187,1.01244632,33747.0,33738.0,0.50985762]
[1625270711288,0.5,33746.0,33737.0,0.81014829]
[1625270711437,0.5,33745.0,33737.0,0.81014829]
[1625270711546,0.5,33744.0,33737.0,0.81014829]
[1625270711639,1.118,33744.0,33737.0,0.80134829]
[1625270711738,1.118,33744.0,33737.0,0.57984829]
[1625270711892,0.618,33744.0,33732.0,0.51004607]
[1625270712191,0.96230176,33733.0,33732.0,0.33454607]
[1625270712339,1.28904176,33733.0,33714.0,2.13247897]
[1625270712438,1.28904176,33733.0,33714.0,2.19147897]
[1625270712688,1.34804176,33733.0,33714.0,1.0541]
[1625270713087,1.28904176,33733.0,33714.0,1.0541]
[1625270713539,1.28904176,33733.0,33715.0,0.2929]
[1625270713641,1.23004176,33733.0,33715.0,0.3519]
[1625270713739,0.96230176,33733.0,33715.0,0.4109]
[1625270714141,0.48115088,33716.0,33715.0,0.4109]
[1625270714341,2.632e-05,33718.0,33715.0,0.4109]
[1625270714790,0.24057544,33733.0,33715.0,0.4109]
[1625270715244,0.29957544,33733.0,33715.0,0.4109]
[1625270715393,0.2373,33755.0,33715.0,0.68417]
[1625270715542,0.059,33747.0,33716.0,0.116]
[1625270715645,0.059,33747.0,33716.0,0.118]
[1625270715746,0.9907,33761.0,33716.0,0.118]
[1625270715844,1.0497,33761.0,33717.0,0.116]
[1625270715945,1.0497,33761.0,33717.0,0.175]
[1625270716096,1.1087,33761.0,33721.0,1.18602476]
[1625270716197,0.24057544,33744.0,33743.0,0.24057544]
[1625270716301,0.24057544,33744.0,33743.0,0.29957544]
[1625270716752,0.29957544,33744.0,33743.0,0.29957544]
[1625270716856,0.29957544,33744.0,33743.0,0.24057544]
[1625270716952,0.24057544,33744.0,33743.0,0.24057544]
[1625270717052,0.24057544,33744.0,33743.0,0.29957544]
[1625270717755,0.24057544,33744.0,33743.0,0.73757544]
[1625270717905,0.29957544,33744.0,33743.0,0.67857544]
[1625270718005,0.29957544,33744.0,33743.0,0.438]
[1625270718255,0.54015088,33744.0,33743.0,0.438]
[1625270718754,0.59915088,33744.0,33743.0,0.438]
[1625270719106,0.54015088,33744.0,33743.0,0.438]
[1625270719705,0.54015088,33744.0,33736.0,0.24057544]
[1625270719806,0.54015088,33744.0,33736.0,0.059]
[1625270719907,0.54015088,33744.0,33729.0,0.8654]
[1625270720107,0.59915088,33744.0,33729.0,0.9834]
[1625270720208,0.48115088,33730.0,33729.0,0.9834]
[1625270720309,0.68528088,33730.0,33729.0,0.9834]
[1625270721611,0.68528088,33730.0,33729.0,0.8654]
[1625270721712,0.74428088,33730.0,33729.0,0.8654]
[1625270722262,0.83188088,33730.0,33729.0,0.8654]
[1625270722361,0.74428088,33730.0,33729.0,0.8654]
[1625270722761,0.68528088,33730.0,33729.0,0.8654]
[1625270723515,0.77508088,33730.0,33729.0,0.8209]
[1625270723661,0.89308088,33730.0,33729.0,0.5561]
[1625270724213,1.13365632,33730.0,33729.0,0.5561]
[1625270724663,1.13365632,33730.0,33729.0,0.5322]
[1625270724863,1.07465632,33730.0,33729.0,0.5322]
[1625270725014,1.01565632,33730.0,33729.0,0.5322]
[1625270726170,1.01565632,33730.0,33729.0,0.6502]
[1625270726269,0.92585632,33730.0,33729.0,0.6502]
[1625270726466,0.92585632,33730.0,33729.0,0.5322]
[1625270726569,0.98485632,33730.0,33729.0,0.5322]
[1625270726716,0.92585632,33730.0,33729.0,0.5322]
[1625270726918,0.98485632,33730.0,33729.0,0.4059]
[1625270727167,0.98485632,33730.0,33726.0,0.24057544]
[1625270727270,1.07445632,33730.0,33726.0,0.24057544]
[1625270727369,1.01545632,33730.0,33726.0,0.24057544]
[1625270727618,1.01545632,33730.0,33726.0,0.29957544]
[1625270727717,1.01545632,33730.0,33726.0,0.35857544]
[1625270728817,1.01545632,33730.0,33726.0,0.29957544]
[1625270729070,1.01545632,33730.0,33726.0,0.35857544]
[1625270729971,1.01545632,33730.0,33726.0,0.29957544]
[1625270730069,1.01545632,33730.0,33726.0,0.24057544]
[1625270730171,1.01545632,33730.0,33722.0,0.34286534]
[1625270730270,1.07445632,33730.0,33722.0,0.40186534]
[1625270730370,1.01545632,33730.0,33722.0,0.40186534]
[1625270730469,1.01545632,33730.0,33722.0,0.46086534]
[1625270730921,1.01545632,33730.0,33722.0,0.118]
[1625270732274,0.48115088,33723.0,33722.0,0.118]
[1625270732374,0.71815088,33723.0,33722.0,0.118]
[1625270732724,0.71815088,33723.0,33722.0,0.059]
[1625270732825,0.71815088,33723.0,33722.0,0.118]
[1625270732926,0.71815088,33723.0,33722.0,0.059]
[1625270733026,0.71815088,33723.0,33721.0,0.24057544]
[1625270733276,0.80625088,33723.0,33719.0,0.43092808]
[1625270733378,0.80625088,33723.0,33718.0,0.43107565]
[1625270733676,0.80625088,33723.0,33718.0,0.0568]
[1625270733776,0.80625088,33723.0,33717.0,0.9968]
[1625270733878,0.86525088,33723.0,33717.0,0.9968]
[1625270733980,0.86525088,33723.0,33717.0,1.0558]
[1625270734128,0.77715088,33723.0,33717.0,0.059]
[1625270734226,0.24057544,33718.0,33717.0,0.059]
[1625270734778,0.24057544,33718.0,33717.0,0.40247729]
[1625270735128,0.24057544,33718.0,33717.0,0.7457731]
[1625270736279,0.24057544,33718.0,33717.0,0.059]
[1625270736583,0.24057544,33718.0,33717.0,0.74645152]
[1625270737734,0.24057544,33718.0,33717.0,0.68745152]
[1625270737985,0.24057544,33718.0,33716.0,0.68738316]
[1625270738231,0.24057544,33718.0,33716.0,0.74638316]
[1625270738333,0.24057544,33717.0,33716.0,0.059]
[1625270738633,0.24057544,33717.0,33716.0,0.74761718]
[1625270739083,0.24057544,33717.0,33716.0,0.75443359]
[1625270739834,0.51739544,33717.0,33716.0,0.75443359]
[1625270740586,0.51739544,33717.0,33716.0,0.06581641]
[1625270741140,0.51739544,33717.0,33716.0,0.41028314]
[1625270741536,0.51739544,33717.0,33716.0,0.75471616]
[1625270741787,0.51739544,33717.0,33716.0,0.06581641]
[1625270742290,0.51739544,33717.0,33716.0,0.30639185]
[1625270742843,0.51739544,33717.0,33716.0,0.99554056]
[1625270742945,0.20413,33730.0,33716.0,0.99554056]
[1625270743045,0.059,33730.0,33716.0,1.21336056]
[1625270743199,0.059,33730.0,33716.0,1.27236056]
[1625270743296,0.059,33730.0,33720.0,0.34452032]
[1625270743496,0.059,33730.0,33720.0,0.46252032]
[1625270743599,0.059,33730.0,33722.0,0.34448818]
[1625270743846,0.059,33730.0,33722.0,0.40348818]
[1625270743948,0.059,33730.0,33723.0,0.00681556]
[1625270744048,0.059,33730.0,33723.0,0.68972973]
[1625270744297,0.059,33730.0,33729.0,0.72172632]
[1625270744699,0.059,33730.0,33729.0,0.72854187]
[1625270745053,0.059,33730.0,33729.0,0.72172632]
[1625270745551,0.059,33730.0,33729.0,0.72854406]
[1625270745653,0.118,33730.0,33729.0,0.72854406]
[1625270746103,0.118,33730.0,33729.0,0.72172632]
[1625270746905,0.059,33730.0,33729.0,0.72172632]
[1625270747205,0.059,33730.0,33729.0,0.72854424]
[1625270747904,0.059,33730.0,33729.0,0.78754424]
[1625270748605,0.059,33730.0,33729.0,0.72854424]
[1625270749708,4.6345,33730.0,33729.0,0.72854424]
[1625270749812,4.83757,33730.0,33724.0,0.17275967]
[1625270749911,4.83757,33730.0,33722.0,0.48503866]
[1625270749912,0.5,33729.0,33722.0,0.48503866]
[1625270750014,0.5,33729.0,33721.0,0.51831174]
[1625270750113,1.12851705,33729.0,33721.0,0.32531174]
[1625270750311,1.12851705,33729.0,33721.0,0.11171174]
[1625270750412,0.96230176,33722.0,33721.0,0.03771174]
[1625270750515,1.73741176,33722.0,33721.0,0.03771174]
[1625270750613,0.059,33721.0,33719.0,0.67239407]
[1625270750714,1.79641176,33722.0,33719.0,0.67239407]
[1625270750817,0.118,33721.0,33719.0,0.67239407]
[1625270750916,0.51053681,33720.0,33705.0,1.03685783]
[1625270751064,0.62853681,33720.0,33705.0,1.03685783]
[1625270751166,0.01053709,33719.0,33700.0,1.03816637]
[1625270751266,0.01053709,33719.0,33710.0,0.9289]
[1625270751414,0.12853709,33719.0,33710.0,0.9289]
[1625270751516,0.5,33718.0,33710.0,0.8549]
[1625270751667,0.618,33718.0,33710.0,0.777]
[1625270751815,0.62853776,33718.0,33710.0,0.777]
[1625270752064,0.06953781,33717.0,33710.0,0.777]
[1625270752163,0.12853781,33717.0,33710.0,0.7573]
[1625270752265,0.12853781,33717.0,33710.0,0.6561]
[1625270752364,0.72172632,33711.0,33710.0,0.6561]
[1625270752514,1.07887632,33711.0,33710.0,0.6561]
[1625270752615,1.13787632,33711.0,33710.0,0.6561]
[1625270755678,0.83972632,33711.0,33710.0,0.6561]
[1625270755777,0.118,33711.0,33710.0,0.6561]
[1625270755874,0.059,33711.0,33710.0,0.6561]
[1625270755974,0.24057544,33722.0,33710.0,0.6561]
[1625270756075,0.24057544,33722.0,33710.0,0.8448]
[1625270756174,0.35857544,33722.0,33710.0,0.8448]
[1625270756475,0.24057544,33712.0,33711.0,0.24057544]
[1625270756875,0.29957544,33712.0,33711.0,0.24057544]
[1625270757075,0.24057544,33712.0,33711.0,0.24057544]
[1625270757678,0.29957544,33712.0,33711.0,0.24057544]
[1625270757879,0.35857544,33712.0,33711.0,0.24057544]
[1625270758078,0.29957544,33712.0,33711.0,0.24057544]
[1625270758229,0.35857544,33712.0,33711.0,0.24057544]
[1625270758432,0.59915088,33712.0,33710.0,0.6561]
[1625270759182,0.54015088,33712.0,33710.0,0.6561]
[1625270759285,0.59915088,33712.0,33710.0,0.6561]
[1625270759684,0.54015088,33712.0,33710.0,0.6561]
[1625270759782,0.59915088,33712.0,33710.0,0.6561]
[1625270761087,0.54015088,33712.0,33710.0,0.6561]
[1625270761740,0.48115088,33712.0,33710.0,0.7151]
[1625270761939,0.48115088,33712.0,33710.0,0.6561]
[1625270762040,0.24057544,33715.0,33710.0,0.6561]
[1625270762141,0.24057544,33719.0,33710.0,0.6561]
[1625270762142,1.02253871,33727.0,33710.0,0.98452]
[1625270762244,0.059,33719.0,33710.0,0.98452]
[1625270762493,0.35857544,33727.0,33726.0,0.24057544]
[1625270762594,0.35857544,33727.0,33726.0,0.51124544]
[1625270765299,0.35857544,33727.0,33726.0,0.24057544]
[1625270766655,0.35857544,33727.0,33721.0,0.24057544]
[1625270766754,0.66102544,33727.0,33721.0,0.24057544]
[1625270767005,1.02690111,33726.0,33721.0,0.24057544]
[1625270767106,1.14490111,33726.0,33721.0,0.24057544]
[1625270768410,1.02649905,33725.0,33721.0,0.24057544]
[1625270768511,0.24057544,33722.0,33721.0,0.24057544]
[1625270768611,0.29957544,33722.0,33721.0,0.24057544]
[1625270768762,0.61168544,33722.0,33721.0,0.24057544]
[1625270770016,0.35857544,33722.0,33721.0,0.24057544]
[1625270772518,0.29957544,33722.0,33721.0,0.24057544]
[1625270772870,1.02935722,33727.0,33721.0,0.24057544]
[1625270772969,1.08835722,33727.0,33721.0,0.50244544]
[1625270773524,0.059,33727.0,33721.0,0.50244544]
[1625270774124,0.059,33727.0,33722.0,0.00680456]
[1625270774423,0.059,33727.0,33721.0,0.50244544]
[1625270774526,0.059,33727.0,33726.0,0.48115088]
[1625270775227,0.14498131,33727.0,33726.0,0.48115088]
[1625270775579,0.059,33727.0,33726.0,0.48115088]
[1625270775779,0.08600974,33729.0,33726.0,0.48115088]
[1625270776330,0.08600974,33729.0,33727.0,0.00680357]
[1625270776577,0.08600974,33729.0,33728.0,0.24057544]
[1625270776728,0.32665766,33731.0,33728.0,0.59004107]
[1625270777579,0.32665766,33731.0,33729.0,0.0871588]
[1625270777777,0.38565766,33731.0,33729.0,0.0871588]
[1625270777878,0.32665766,33731.0,33729.0,0.0871588]
[1625270778731,0.38565766,33731.0,33729.0,0.0871588]
[1625270778830,0.32665766,33731.0,33730.0,0.00680311]
[1625270779280,0.47348957,33736.0,33730.0,0.00680311]
[1625270779532,1.03185208,33735.0,33730.0,0.00680311]
[1625270779634,1.03185208,33735.0,33730.0,0.06580311]
[1625270780031,1.37766576,33744.0,33730.0,0.06580311]
[1625270780131,1.37766576,33744.0,33731.0,0.00680198]
[1625270780232,1.49566576,33744.0,33731.0,0.00680198]
[1625270780332,1.49566576,33744.0,33731.0,0.06580198]
[1625270780583,1.49566576,33744.0,33743.0,0.96230176]
[1625270780685,0.118,33744.0,33743.0,0.96230176]
[1625270780984,1.49416252,33744.0,33743.0,0.96230176]
[1625270781688,1.43516252,33744.0,33743.0,0.96230176]
[1625270781989,1.49416252,33744.0,33743.0,0.96230176]
[1625270784946,1.43516252,33744.0,33743.0,0.96230176]
[1625270785045,1.49416252,33744.0,33743.0,0.96230176]
[1625270785246,1.43516252,33744.0,33743.0,0.96230176]
[1625270785346,1.49416252,33744.0,33743.0,0.96230176]
[1625270785550,1.43516252,33744.0,33743.0,0.96230176]
[1625270785897,1.79601252,33744.0,33743.0,0.96230176]
[1625270786096,1.79601252,33744.0,33743.0,0.90300176]
[1625270786196,1.79601252,33744.0,33743.0,0.84360176]
[1625270786296,1.79601252,33744.0,33743.0,0.38480176]
[1625270786446,3.34100072,33744.0,33731.0,0.2929]
[1625270786546,0.24057544,33737.0,33736.0,0.24057544]
[1625270786647,0.44051544,33737.0,33736.0,0.24057544]
[1625270786796,0.55851544,33737.0,33736.0,0.24057544]
[1625270787547,1.92939199,33737.0,33736.0,0.24057544]
[1625270788147,1.92939199,33737.0,33729.0,0.24057544]
[1625270788548,0.24057544,33730.0,33729.0,0.24057544]
[1625270788698,0.29957544,33730.0,33729.0,0.24057544]
[1625270788799,0.60488544,33730.0,33729.0,0.24057544]
[1625270788999,0.60488544,33730.0,33729.0,0.24738361]
[1625270789199,0.66388544,33730.0,33729.0,0.24738361]
[1625270789349,0.60488544,33730.0,33729.0,0.24738361]
[1625270789500,0.60488544,33730.0,33729.0,0.24057544]
[1625270789752,0.60488544,33730.0,33729.0,0.2473837]
[1625270790805,0.66388544,33730.0,33729.0,0.24057544]
[1625270790952,0.60488544,33730.0,33729.0,0.24057544]
[1625270791055,0.60488544,33730.0,33729.0,0.24738381]
[1625270791607,0.54588544,33730.0,33729.0,0.24738381]
[1625270792660,0.60488544,33730.0,33729.0,0.24738381]
[1625270793114,0.24057544,33730.0,33729.0,0.24738381]
[1625270793513,0.24057544,33730.0,33729.0,0.30638381]
[1625270794615,0.24057544,33737.0,33729.0,0.59928381]
[1625270794815,0.29957544,33737.0,33729.0,0.59928381]
[1625270795019,0.29957544,33737.0,33730.0,0.00680695]
[1625270795217,0.29957544,33737.0,33730.0,0.06580695]
[1625270795622,0.29957544,33737.0,33731.0,0.00680666]
[1625270795718,0.29957544,33737.0,33731.0,0.06580666]
[1625270796215,0.29957544,33737.0,33732.0,0.06580655]
[1625270796565,0.29957544,33737.0,33736.0,0.48115088]
[1625270796917,0.29957544,33737.0,33736.0,0.48795744]
[1625270799474,0.35857544,33737.0,33736.0,0.48795744]
[1625270799628,0.29957544,33737.0,33736.0,0.48795744]
[1625270799976,0.35857544,33737.0,33736.0,0.48795744]
[1625270802582,0.29957544,33737.0,33736.0,0.48795744]
[1625270803433,0.35857544,33737.0,33736.0,0.48795744]
[1625270803685,0.35857544,33737.0,33736.0,0.48115088]
[1625270803934,0.35857544,33737.0,33736.0,0.48795831]
[1625270804337,0.86957141,33737.0,33736.0,0.48795831]
[1625270805586,0.81057141,33737.0,33736.0,0.48795831]
[1625270806137,0.29957544,33737.0,33736.0,0.48795831]
[1625270807738,0.56846544,33737.0,33736.0,0.48795831]
[1625270808038,0.62746544,33737.0,33736.0,0.48795831]
[1625270808191,0.56846544,33737.0,33736.0,0.48795831]
[1625270809040,0.62746544,33737.0,33736.0,0.48795831]
[1625270809241,1.1375391,33737.0,33736.0,0.48795831]
[1625270810092,1.0785391,33737.0,33736.0,0.48795831]
[1625270810397,0.56846544,33737.0,33736.0,0.48795831]
[1625270810694,0.62746544,33737.0,33736.0,0.48795831]
[1625270811148,1.7587815,33737.0,33736.0,0.48795831]
[1625270811900,1.07862518,33737.0,33736.0,0.48795831]
[1625270812254,1.75892756,33737.0,33736.0,0.48795831]
[1625270812505,0.56846544,33737.0,33736.0,0.48795831]
[1625270813154,1.07911883,33737.0,33736.0,0.48795831]
[1625270814456,1.7596689,33737.0,33736.0,0.48795831]
[1625270814606,1.8186689,33737.0,33736.0,0.48795831]
[1625270814958,1.8186689,33737.0,33736.0,0.00680743]
[1625270815061,4.02807827,33737.0,33736.0,0.00680743]
[1625270815159,4.03861344,33737.0,33729.0,0.24057544]
[1625270815313,3.7172,33731.0,33729.0,0.24057544]
[1625270815408,3.7762,33731.0,33730.0,0.00681107]
[1625270815712,8.5344621,33731.0,33730.0,0.00681107]
[1625270815907,8.5344621,33731.0,33727.0,0.00681134]
[1625270816008,7.17503146,33731.0,33727.0,0.00681134]
[1625270816209,7.17503146,33731.0,33730.0,0.00681134]
[1625270816412,5.13549752,33731.0,33730.0,0.00681134]
[1625270816510,5.13549752,33731.0,33728.0,0.00681141]
[1625270816761,0.48115088,33729.0,33727.0,0.00681141]
[1625270816910,0.83989088,33729.0,33727.0,0.00681141]
[1625270817010,2.20917871,33728.0,33727.0,0.00681141]
[1625270817111,2.32717871,33728.0,33727.0,0.00681141]
[1625270819112,3.5180281,33728.0,33727.0,0.00681141]
[1625270825482,4.87975077,33728.0,33727.0,0.00681141]
[1625270825785,4.87975077,33728.0,33726.0,1.17407544]
[1625270825885,4.87975077,33728.0,33726.0,0.9335]
[1625270826435,4.76133669,33727.0,33726.0,0.9335]
[1625270826585,4.82033669,33727.0,33726.0,0.9335]
[1625270826684,4.82033669,33727.0,33726.0,0.8745]
[1625270826784,5.06091213,33727.0,33726.0,0.8745]
[1625270827034,5.06091213,33727.0,33726.0,0.0001]
[1625270827184,5.06091213,33727.0,33720.0,0.52462601]
[1625270827387,5.06091213,33727.0,33717.0,0.52451806]
[1625270827388,6.64834032,33727.0,33717.0,0.52451806]
[1625270827487,7.14834032,33727.0,33717.0,0.52451806]
[1625270827690,3.39832206,33718.0,33714.0,0.76515898]
[1625270827836,3.82240206,33718.0,33714.0,0.76515898]
[1625270827936,3.82240206,33718.0,33714.0,0.52458354]
[1625270828137,3.82240206,33718.0,33712.0,1.04916707]
[1625270828138,1.69951297,33715.0,33712.0,0.69946228]
[1625270828238,3.6596,33714.0,33712.0,0.69946228]
[1625270828336,3.7186,33714.0,33712.0,0.69946228]
[1625270828438,3.7776,33714.0,33711.0,1.0083557]
[1625270828741,1.01934455,33713.0,33710.0,1.04953049]
[1625270828841,0.72172632,33712.0,33710.0,1.04953049]
[1625270828940,0.78072632,33712.0,33710.0,1.04953049]
[1625270829040,0.83972632,33712.0,33710.0,1.04953049]
[1625270829342,2.0272635,33712.0,33705.0,1.46515085]
[1625270829794,0.83972632,33712.0,33705.0,1.46515085]
[1625270829891,0.83972632,33712.0,33706.0,0.00681876]
[1625270830141,0.83972632,33712.0,33705.0,0.24057544]
[1625270830845,0.29957544,33706.0,33705.0,0.24057544]
[1625270830945,0.56305544,33706.0,33705.0,0.24057544]
[1625270831545,0.56305544,33706.0,33702.0,2.43148466]
[1625270831745,0.56305544,33706.0,33702.0,2.19090922]
[1625270831847,0.56305544,33706.0,33702.0,1.22230922]
[1625270832094,0.56305544,33706.0,33702.0,2.44460309]
[1625270832495,0.62205544,33706.0,33702.0,1.22230922]
[1625270832695,0.059,33705.0,33702.0,1.22230922]
[1625270832796,0.24057544,33703.0,33702.0,1.22230922]
[1625270832897,0.29957544,33703.0,33702.0,1.22230922]
[1625270833096,0.35857544,33703.0,33702.0,1.22230922]
[1625270834799,0.59915088,33703.0,33702.0,1.22230922]
[1625270835300,0.54015088,33703.0,33702.0,1.22230922]
[1625270835401,0.48115088,33703.0,33702.0,1.22230922]
[1625270835701,0.54015088,33703.0,33702.0,1.22230922]
[1625270835801,0.48115088,33703.0,33702.0,1.22230922]
[1625270836503,0.54015088,33703.0,33702.0,1.22230922]
[1625270836703,0.59915088,33703.0,33702.0,1.22230922]
[1625270839813,0.59915088,33703.0,33702.0,1.16740922]
[1625270841464,0.48115088,33703.0,33702.0,1.16740922]
[1625270841667,0.54015088,33703.0,33702.0,1.16740922]
[1625270842566,0.59915088,33703.0,33702.0,1.16740922]
[1625270845475,0.54015088,33703.0,33702.0,1.16740922]
[1625270845572,0.59915088,33703.0,33702.0,1.16740922]
[1625270851596,0.54015088,33703.0,33702.0,1.16740922]
[1625270851691,0.54015088,33703.0,33702.0,1.37327922]
[1625270852091,0.48115088,33703.0,33702.0,1.37327922]
[1625270852942,0.54015088,33703.0,33702.0,1.37327922]
[1625270853593,0.59915088,33703.0,33702.0,1.37327922]
[1625270853695,0.59915088,33703.0,33702.0,1.16740922]
[1625270853795,0.54015088,33703.0,33702.0,1.16740922]
[1625270853945,0.59915088,33703.0,33702.0,1.16740922]
[1625270854447,0.54015088,33703.0,33702.0,1.16740922]
[1625270854546,0.59915088,33703.0,33702.0,1.16740922]
[1625270854796,0.54015088,33703.0,33702.0,1.16740922]
[1625270855147,0.59915088,33703.0,33702.0,1.16740922]
[1625270855449,0.59915088,33703.0,33702.0,1.17422562]
[1625270856200,0.54015088,33703.0,33702.0,1.17422562]
[1625270856549,0.59915088,33703.0,33702.0,1.17422562]
[1625270856901,0.54015088,33703.0,33702.0,1.17422562]
[1625270857002,0.59915088,33703.0,33702.0,1.17422562]
[1625270857103,0.54015088,33703.0,33702.0,1.17422562]
[1625270857352,0.59915088,33703.0,33702.0,1.17422562]
[1625270857453,0.48115088,33703.0,33702.0,1.17422562]
[1625270857903,0.48115088,33703.0,33702.0,1.44657562]
[1625270858205,0.54015088,33703.0,33702.0,1.44657562]
[1625270858354,0.59915088,33703.0,33702.0,1.44657562]
[1625270858705,0.54015088,33703.0,33702.0,1.44657562]
[1625270859008,0.59915088,33703.0,33702.0,1.44657562]
[1625270859156,0.59915088,33703.0,33702.0,1.17422562]
[1625270861210,0.54015088,33703.0,33702.0,1.17422562]
[1625270862362,0.48115088,33703.0,33702.0,1.17422562]
[1625270862467,0.48115088,33703.0,33702.0,1.44467562]
[1625270862965,0.48115088,33703.0,33702.0,1.68525106]
[1625270864614,0.48115088,33703.0,33702.0,1.74425106]
[1625270865366,0.48115088,33703.0,33702.0,1.68525106]
[1625270865818,0.54015088,33703.0,33702.0,1.68525106]
[1625270866170,0.54015088,33703.0,33702.0,1.44467562]
[1625270866270,0.54015088,33703.0,33702.0,1.17422562]
[1625270868075,0.48115088,33703.0,33702.0,1.17422562]
[1625270868177,0.48115088,33703.0,33702.0,1.16740922]
[1625270868328,0.54015088,33703.0,33702.0,1.16740922]
[1625270868428,0.48115088,33703.0,33702.0,1.1742203]
[1625270868978,0.48115088,33703.0,33702.0,1.41479574]
[1625270870135,0.54015088,33703.0,33702.0,1.41479574]
[1625270870634,0.48115088,33703.0,33702.0,1.41479574]
[1625270870734,0.48115088,33703.0,33702.0,1.47379574]
[1625270871085,0.48115088,33703.0,33702.0,1.41479574]
[1625270871235,0.48115088,33703.0,33702.0,1.47379574]
[1625270871433,0.48115088,33703.0,33702.0,1.41479574]
[1625270872540,0.24057544,33706.0,33702.0,1.41479574]
[1625270872642,0.33692567,33709.0,33702.0,1.41479574]
[1625270872740,0.33692567,33709.0,33702.0,1.47379574]
[1625270872840,1.25101568,33712.0,33702.0,1.47379574]
[1625270872841,0.33719242,33708.0,33702.0,1.47379574]
[1625270873092,0.33719242,33708.0,33707.0,0.48115088]
[1625270873191,0.3374225,33710.0,33707.0,0.73196088]
[1625270873291,0.3374225,33710.0,33707.0,0.73877096]
[1625270873391,0.3964225,33710.0,33707.0,0.73877096]
[1625270873495,0.059,33710.0,33707.0,0.73877096]
[1625270873596,0.059,33710.0,33708.0,0.00680988]
[1625270873844,0.33751088,33711.0,33708.0,0.00680988]
[1625270874045,0.39651088,33711.0,33708.0,0.06580988]
[1625270874447,0.39651088,33711.0,33709.0,0.00680962]
[1625270874547,0.39651088,33711.0,33709.0,0.06580962]
[1625270874897,0.39651088,33711.0,33710.0,0.00680932]
[1625270874997,0.059,33711.0,33710.0,0.00680932]
[1625270875147,0.118,33711.0,33710.0,0.00680932]
[1625270875446,0.059,33711.0,33710.0,0.00680932]
[1625270875798,1.07182169,33711.0,33710.0,0.00680932]
[1625270876901,1.16052169,33711.0,33710.0,0.00680932]
[1625270877504,1.21952169,33711.0,33710.0,0.00680932]
[1625270877751,2.40205455,33711.0,33710.0,0.00680932]
[1625270877851,2.40205455,33711.0,33710.0,0.09630932]
[1625270878205,2.40205455,33711.0,33710.0,0.00680932]
[1625270878301,2.31335455,33711.0,33710.0,0.00680932]
[1625270878404,3.66534265,33711.0,33710.0,0.00680932]
[1625270879151,3.67597879,33711.0,33710.0,0.00680932]
[1625270880954,5.1973036,33711.0,33710.0,0.00680932]
[1625270882958,5.4506436,33711.0,33710.0,0.00680932]
[1625270886624,0.0877,33710.0,33703.0,0.35050337]
[1625270886726,0.0877,33710.0,33702.0,0.24057544]
[1625270886826,0.2057,33710.0,33702.0,0.24057544]
[1625270886925,0.01065052,33709.0,33704.0,0.00676315]
[1625270887026,1.68935511,33707.0,33704.0,0.00676315]
[1625270887126,0.48115088,33705.0,33704.0,0.00676315]
[1625270887278,0.54015088,33705.0,33703.0,0.0067633]
[1625270887378,5.67254844,33705.0,33703.0,0.0067633]
[1625270887525,5.68319928,33705.0,33702.0,0.24057544]
[1625270887829,5.08363355,33704.0,33702.0,0.24057544]
[1625270887926,5.45808355,33704.0,33702.0,0.24057544]
[1625270888027,5.45808355,33704.0,33703.0,0.00676345]
[1625270888327,0.38510076,33704.0,33703.0,0.00676345]
[1625270888678,6.13415985,33704.0,33703.0,0.00676345]
[1625270888829,6.12350909,33704.0,33702.0,0.24057544]
[1625270889579,5.74755146,33703.0,33702.0,0.24057544]
[1625270889729,5.86555146,33703.0,33702.0,0.24057544]
[1625270900808,5.86555146,33703.0,33702.0,0.32977544]
[1625270900907,5.86555146,33703.0,33702.0,0.24057544]
[1625270901006,5.86555146,33703.0,33702.0,0.14767544]
[1625270902105,0.79425212,33703.0,33702.0,0.14767544]
[1625270902206,5.82186002,33703.0,33702.0,0.14767544]
[1625270902455,5.82186002,33703.0,33699.0,0.24057544]
[1625270902957,4.2317,33700.0,33699.0,0.24057544]
[1625270903056,10.04879045,33700.0,33699.0,0.24057544]
[1625270903156,10.28936589,33700.0,33693.0,0.24057544]
[1625270903657,10.28936589,33700.0,33694.0,0.00676436]
[1625270903908,4.19123592,33695.0,33694.0,0.00676436]
[1625270904009,4.54309592,33695.0,33694.0,0.00676436]
[1625270905061,3.20194736,33695.0,33694.0,0.00676436]
[1625270905161,2.90908736,33695.0,33694.0,0.00676436]
[1625270905311,3.1496628,33695.0,33694.0,0.00676436]
[1625270905911,3.3451928,33695.0,33694.0,0.00676436]
[1625270906314,3.4041928,33695.0,33691.0,0.12825791]
[1625270906414,4.74823375,33695.0,33691.0,0.17512982]
[1625270906615,4.74823375,33695.0,33691.0,0.03382982]
[1625270906715,4.74823375,33695.0,33690.0,0.30638945]
[1625270906815,4.68923375,33695.0,33690.0,0.30638945]
[1625270906968,4.19382801,33692.0,33690.0,0.30638945]
[1625270907065,4.19382801,33692.0,33685.0,0.17514325]
[1625270907165,4.19382801,33692.0,33691.0,0.00675753]
[1625270907267,4.67497889,33692.0,33691.0,0.00675753]
[1625270907365,4.79297889,33692.0,33686.0,0.24733316]
[1625270907465,5.04303889,33692.0,33686.0,0.00675772]
[1625270907566,0.67105619,33687.0,33686.0,0.00675772]
[1625270907668,0.73005619,33687.0,33685.0,0.70026062]
[1625270907865,1.67740017,33686.0,33682.0,0.7003073]
[1625270908065,1.79540017,33686.0,33682.0,0.7003073]
[1625270908266,0.67107892,33685.0,33683.0,0.70025452]